fUST/lending_fUST_20260413
["ID","MTS","AMOUNT","RATE_DAILY","PERIOD"]
[420358574,1776031839623,-500.0,7.596e-05,2]
[420358575,1776031839635,-500.0,7.596e-05,2]
[420358576,1776031839666,-500.0,7.596e-05,2]
[420358577,1776031839676,-500.0,7.596e-05,2]
[420358578,1776031839697,-500.0,7.596e-05,2]
[420358579,1776031839714,-500.0,7.596e-05,2]
[420358580,1776031839725,-500.0,7.596e-05,2]
[420358581,1776031839752,-211.43459908,7.596e-05,2]
[420358582,1776031839774,-500.0,7.596e-05,2]
[420358583,1776031839793,-500.0,7.596e-05,2]
[420358584,1776031839803,-500.0,7.596e-05,2]
[420358585,1776031839837,-500.0,7.596e-05,2]
[420358586,1776031839854,-500.0,7.596e-05,2]
[420358587,1776031839879,-500.0,7.596e-05,2]
[420358588,1776031839891,-500.0,7.596e-05,2]
[420358589,1776031839904,-500.0,7.596e-05,2]
[420358590,1776031839925,-500.0,7.596e-05,2]
[420358591,1776031839937,-500.0,7.596e-05,2]
[420358592,1776031839958,-500.0,7.596e-05,2]
[420358593,1776031839969,-325.41176851,7.596e-05,2]
[420358594,1776031840000,-213.08152866,7.598e-05,2]
[420358595,1776031840010,-400.0,7.599e-05,2]
[420358596,1776031840031,-400.0,7.599e-05,2]
[420358597,1776031840044,-400.0,7.599e-05,2]
[420358598,1776031840055,-400.0,7.599e-05,2]
[420358599,1776031840080,-400.0,7.599e-05,2]
[420358600,1776031840091,-400.0,7.599e-05,2]
[420358601,1776031840116,-400.0,7.599e-05,2]
[420358602,1776031840132,-400.0,7.599e-05,2]
[420358603,1776031840142,-400.0,7.599e-05,2]
[420358604,1776031840183,-400.0,7.599e-05,2]
[420358605,1776031840194,-151.0,7.599e-05,2]
[420358606,1776031840222,-214.19397165,7.599e-05,2]
[420358607,1776031840232,-500.0,7.599e-05,2]
[420358608,1776031840253,-414.46089073,7.599e-05,2]
[420358609,1776031840280,-500.0,7.599e-05,2]
[420358610,1776031840291,-500.0,7.599e-05,2]
[420358611,1776031840342,-500.0,7.599e-05,2]
[420358612,1776031840351,-300.40874505,7.599e-05,2]
[420358613,1776031840379,-500.0,7.599e-05,2]
[420358614,1776031840404,-500.0,7.599e-05,2]
[420358615,1776031840414,-500.0,7.599e-05,2]
[420358616,1776031840438,-400.0,7.6e-05,2]
[420358617,1776031840468,-400.0,7.6e-05,2]
[420358618,1776031840479,-400.0,7.6e-05,2]
[420358619,1776031840508,-400.0,7.6e-05,2]
[420358620,1776031840522,-400.0,7.6e-05,2]
[420358621,1776031840535,-400.0,7.6e-05,2]
[420358622,1776031840545,-400.0,7.6e-05,2]
[420358623,1776031840561,-400.0,7.6e-05,2]
[420358624,1776031840571,-400.0,7.6e-05,2]
[420358625,1776031840582,-400.0,7.6e-05,2]
[420358626,1776031840594,-298.96,7.6e-05,2]
[420358627,1776031840615,-151.0,7.6e-05,2]
[420358628,1776031840624,-42234.08747336,7.6e-05,2]
[420358629,1776031840634,-555.53628,7.601e-05,2]
[420358630,1776031840649,-400.0,7.611e-05,2]
[420358631,1776031840659,-400.0,7.611e-05,2]
[420358632,1776031840676,-400.0,7.611e-05,2]
[420358633,1776031840686,-400.0,7.611e-05,2]
[420358634,1776031840695,-400.0,7.611e-05,2]
[420358635,1776031840709,-400.0,7.611e-05,2]
[420358636,1776031840723,-400.0,7.611e-05,2]
[420358637,1776031840732,-400.0,7.611e-05,2]
[420358638,1776031840742,-400.0,7.611e-05,2]
[420358639,1776031840756,-400.0,7.611e-05,2]
[420358640,1776031840769,-400.0,7.614e-05,2]
[420358641,1776031840779,-400.0,7.614e-05,2]
[420358642,1776031840798,-400.0,7.614e-05,2]
[420358643,1776031840810,-2762.47542408,7.684e-05,2]
[420358644,1776031840820,-3028.58684356,7.784e-05,2]
[420358645,1776031840833,-555.53628,7.875e-05,2]
[420358646,1776031840847,-548.76587849,8.219e-05,2]
[420358647,1776031840860,-1977.9050677,8.219e-05,2]
[420358648,1776031840869,-500.0,8.219e-05,2]
[420358649,1776031840886,-223.55,9e-05,2]
[420358650,1776031840899,-161.34,9e-05,2]
[420358651,1776031840910,-161.34,9.2e-05,2]
[420358652,1776031840924,-161.34,9.4e-05,2]
[420358653,1776031840947,-161.34,9.5e-05,2]
[420358654,1776031840957,-161.34,9.7e-05,2]
[420358655,1776031840988,-161.34,9.9e-05,2]
[420358656,1776031840997,-3904.02213665,0.0001,2]
[420358657,1776031841011,-386.88859374,0.0001,2]
[420358658,1776031841036,-661.9135636,0.00010639,2]
[420358659,1776031841046,-2645.00660015,0.00010639,2]
[420358660,1776031841074,-195.02640564,0.00010639,2]
[420358661,1776031841091,-779.32551695,0.00010639,2]
[420358662,1776031841108,-2500.0,0.00010959,10]
[420358663,1776031841118,-2500.0,0.00010959,10]
[420358664,1776031841130,-2500.0,0.00010959,10]
[420358665,1776031841143,-2500.0,0.00010959,10]
[420358666,1776031841160,-2500.0,0.00010959,10]
[420358668,1776031841173,-2500.0,0.00010959,10]
[420358669,1776031841205,-2500.0,0.00010959,10]
[420358670,1776031841215,-2500.0,0.00010959,10]
[420358671,1776031841245,-2500.0,0.00010959,10]
[420358672,1776031841259,-2500.0,0.00010959,10]
[420358673,1776031841271,-2500.0,0.00010959,10]
[420358674,1776031841295,-2500.0,0.00010959,10]
[420358675,1776031841305,-2500.0,0.00010959,10]
[420358676,1776031841321,-2500.0,0.00010959,10]
[420358677,1776031841354,-2500.0,0.00010959,10]
[420358678,1776031841367,-2500.0,0.00010959,10]
[420358679,1776031841380,-2500.0,0.00010959,10]
[420358680,1776031841394,-2500.0,0.00010959,10]
[420358681,1776031841404,-2500.0,0.00010959,10]
[420358682,1776031841418,-2500.0,0.00010959,10]
[420358683,1776031841436,-2500.0,0.00010959,10]
[420358684,1776031841445,-500.0,0.00010959,2]
[420358685,1776031841459,-500.0,0.00010959,2]
[420358686,1776031841469,-500.0,0.00010959,2]
[420358687,1776031841484,-340.22815684,0.00010959,2]
[420358688,1776031841493,-500.0,0.00010959,2]
[420358689,1776031841514,-293.86569929,0.00010959,2]
[420358690,1776031841529,-3906.39679094,0.00011778,2]
[420358691,1776031841538,-362.12,0.00012329,2]
[420358692,1776031841565,-301.77,0.00012329,2]
[420358693,1776031841574,-251.47,0.00012329,2]
[420358694,1776031841584,-209.56,0.00012329,2]
[420358695,1776031841615,-174.63,0.00012329,2]
[420358696,1776031841624,-873.2,0.00012329,2]
[420358697,1776031841637,-325.1876519,0.00012937,2]
[420358698,1776031841677,-373.22170853,0.00013061,2]
[420358699,1776031841725,-1491.39394729,0.00013061,2]
[420358700,1776031841743,-470.06820552,0.00013061,2]
[420358701,1776031841770,-1878.39254927,0.00013061,2]
[420358702,1776031841787,-636.886,0.00013482,2]
[420358703,1776031841801,-810.507,0.00013482,2]
[420358704,1776031841825,-784.196,0.00013482,2]
[420358705,1776031841847,-441.0,0.00013482,2]
[420358706,1776031841861,-184.0,0.00013482,2]
[420358707,1776031841875,-622.69,0.00013698,2]
[420358708,1776031841886,-500.0,0.00013698,2]
[420358709,1776031841899,-246.751387,0.00013699,2]
[420358710,1776031841909,-1000.0,0.00013699,2]
[420358711,1776031841928,-283.54399999,0.00013699,30]
[420358712,1776031841941,-221.69418156,0.00013699,2]
[420358713,1776031841963,-455.5702033,0.00013759,2]
[420358714,1776031841975,-455.5981472,0.00014515,2]
[420358715,1776031842004,-164.81190827,0.00014826,2]
[420358716,1776031842013,-537.6845,0.00014826,2]
[420358717,1776031842031,-2150.738,0.00014826,2]
[420358718,1776031842042,-557.5788265,0.00014881,2]
[420358719,1776031842070,-150.331,0.00014898,2]
[420358720,1776031842095,-150.388,0.00014898,2]
[420358721,1776031842104,-150.362,0.00014898,2]
[420358722,1776031842126,-578.20924308,0.00014936,2]
[420358723,1776031842135,-599.60298507,0.00014991,2]
[420358724,1776031842150,-161.08,0.00015,2]
[420358725,1776031842160,-947.0,0.00015,2]
[420358726,1776031842171,-160.0,0.00015,2]
[420358727,1776031842186,-453.0,0.00015,2]
[420358728,1776031842197,-660.0,0.00015,2]
[420358729,1776031842206,-355.5510372,0.00015046,2]
[420358730,1776031842229,-206.753483,0.00015068,2]
[420358731,1776031842238,-4512.46274754,0.00015167,2]
[420358732,1776031842266,-1990.2961948,0.00015205,2]
[420358733,1776031842276,-151.0,0.000153,2]
[420358734,1776031842293,-325.2214703,0.00015342,2]
[420358735,1776031842331,-2230.315306,0.00015374,2]
[420358736,1776031842348,-283.544,0.00015718,30]
[420358737,1776031842370,-283.544,0.00015877,30]
[420358738,1776031842384,-622.82990519,0.00015922,2]
[420358739,1776031842399,-3000.0,0.00016,2]
[420358740,1776031842410,-3000.0,0.0001601,2]
[420358741,1776031842424,-3000.0,0.0001602,2]
[420358742,1776031842441,-3000.0,0.0001603,2]
[420358743,1776031842450,-283.544,0.00016037,30]
[420358744,1776031842467,-283.544,0.00016037,30]
[420358745,1776031842477,-3000.0,0.0001604,2]
[420358746,1776031842487,-3000.0,0.0001605,2]
[420358747,1776031842497,-3000.0,0.0001606,2]
[420358748,1776031842511,-3000.0,0.0001607,2]
[420358749,1776031842521,-3000.0,0.0001608,2]
[420358750,1776031842532,-3000.0,0.0001609,2]
[420358751,1776031842549,-151.0,0.000161,2]
[420358752,1776031842559,-3000.0,0.000161,2]
[420358753,1776031842569,-3000.0,0.0001611,2]
[420358754,1776031842588,-3000.0,0.0001612,2]
[420358755,1776031842600,-4877.462059,0.0001613,2]
[420358756,1776031842621,-14352.86632467,0.000162,2]
[420358757,1776031842632,-455.5452178,0.00016203,2]
[420358758,1776031842646,-5400.55916587,0.00016297,2]
[420358759,1776031842661,-155.0,0.00016437,2]
[420358760,1776031842690,-1674.1276,0.00016438,2]
[420358761,1776031842700,-500.0,0.00016438,2]
[420358762,1776031842713,-510.3,0.00016438,2]
[420358763,1776031842734,-500.79516122,0.00016438,2]
[420358764,1776031842757,-511.72634559,0.00016438,2]
[420358765,1776031842768,-500.0,0.00016438,2]
[420358766,1776031842778,-500.91489503,0.00016438,2]
[420358767,1776031842794,-582.08,0.00016438,2]
[420358768,1776031842804,-501.29880181,0.00016438,2]
[420358769,1776031842814,-500.0,0.00016438,2]
[420358770,1776031842830,-2245.51,0.00016438,2]
[420358771,1776031842839,-500.0,0.00016438,2]
[420358772,1776031842850,-500.0,0.00016438,2]
[420358773,1776031842860,-1898.13,0.00016438,2]
[420358774,1776031842878,-500.0,0.00016438,2]
[420358775,1776031842888,-1424.05,0.00016438,2]
[420358776,1776031842898,-942.59,0.00016438,2]
[420358777,1776031842910,-500.0,0.00016438,2]
[420358778,1776031842926,-2805.1,0.00016438,2]
[420358779,1776031842936,-500.0,0.00016438,2]
[420358780,1776031842949,-188.208033,0.00016438,2]
[420358781,1776031842962,-500.0,0.00016438,2]
[420358782,1776031842972,-500.0,0.00016438,2]
[420358784,1776031843103,-626.72,0.00016438,2]
[420358785,1776031843142,-500.67666775,0.00016438,2]
[420358786,1776031843152,-500.0,0.00016438,2]
[420358787,1776031843162,-500.0,0.00016438,2]
[420358788,1776031843178,-500.0,0.00016438,2]
[420358790,1776031843187,-551.52,0.00016438,2]
[420358791,1776031843208,-500.0,0.00016438,2]
[420358794,1776031843219,-500.0,0.00016438,2]
[420358796,1776031843228,-500.0,0.00016438,2]
[420358798,1776031843247,-500.0,0.00016438,2]
[420358799,1776031843259,-2233.52,0.00016438,2]
[420358800,1776031843269,-500.0,0.00016438,2]
[420358801,1776031843279,-500.0,0.00016438,2]
[420358802,1776031843302,-3239.01,0.00016438,2]
[420358803,1776031843312,-500.0,0.00016438,2]
[420358806,1776031843321,-500.0,0.00016438,2]
[420358809,1776031843338,-836.42,0.00016438,2]
[420358811,1776031843357,-500.0,0.00016438,2]
[420358813,1776031843369,-1550.23,0.00016438,2]
[420358815,1776031843380,-2645.99,0.00016438,2]
[420358817,1776031843398,-500.0,0.00016438,2]
[420358818,1776031843407,-5341.38,0.00016438,2]
[420358819,1776031843418,-500.0,0.00016438,2]
[420358820,1776031843430,-500.0,0.00016438,2]
[420358822,1776031843447,-3466.04,0.00016438,2]
[420358824,1776031843456,-2547.79,0.00016438,2]
[420358826,1776031843470,-605.35,0.00016438,2]
[420358827,1776031843488,-517.07,0.00016438,2]
[420358829,1776031843500,-500.0,0.00016438,2]
[420358830,1776031843510,-598.43,0.00016438,2]
[420358831,1776031843528,-500.0,0.00016438,2]
[420358833,1776031843539,-1850.1,0.00016438,2]
[420358835,1776031843552,-500.0,0.00016438,2]
[420358836,1776031843578,-500.0,0.00016438,2]
[420358838,1776031843588,-500.0,0.00016438,2]
[420358840,1776031843599,-500.0,0.00016438,2]
[420358841,1776031843626,-504.59999809,0.00016438,2]
[420358842,1776031843639,-500.0,0.00016438,2]
[420358843,1776031843659,-2309.04,0.00016438,2]
[420358844,1776031843671,-500.0,0.00016438,2]
[420358845,1776031843681,-500.0,0.00016438,2]
[420358846,1776031843697,-500.0,0.00016438,2]
[420358847,1776031843707,-1192.52,0.00016438,2]
[420358848,1776031843718,-2323.17,0.00016438,2]
[420358849,1776031843728,-674.47,0.00016438,2]
[420358850,1776031843739,-500.0,0.00016438,2]
[420358852,1776031843754,-1528.0,0.00016438,2]
[420358854,1776031843766,-250.0,0.00016438,3]
[420358855,1776031843778,-645.0,0.00016482,2]
[420358856,1776031843793,-184.0,0.00016482,2]
[420358857,1776031843803,-207.83810638,0.00016711,2]
[420358858,1776031843819,-1674.1276,0.00016712,2]
[420358859,1776031843830,-500.0,0.00016712,2]
[420358860,1776031843841,-500.0,0.00016712,2]
[420358861,1776031843851,-582.08,0.00016712,2]
[420358862,1776031843869,-500.0,0.00016712,2]
[420358863,1776031843887,-2245.51,0.00016712,2]
[420358864,1776031843903,-500.0,0.00016712,2]
[420358865,1776031843922,-1898.13,0.00016712,2]
[420358866,1776031843933,-500.0,0.00016712,2]
[420358867,1776031843960,-1424.05,0.00016712,2]
[420358868,1776031843988,-942.59,0.00016712,2]
[420358869,1776031843997,-500.0,0.00016712,2]
[420358870,1776031844026,-2805.1,0.00016712,2]
[420358871,1776031844035,-500.0,0.00016712,2]
[420358876,1776031844254,-503.37967786,0.00016712,2]
[420358877,1776031844264,-500.0,0.00016712,2]
[420358878,1776031844274,-626.72,0.00016712,2]
[420358879,1776031844290,-500.0,0.00016712,2]
[420358880,1776031844310,-500.0,0.00016712,2]
[420358881,1776031844322,-500.0,0.00016712,2]
[420358882,1776031844334,-551.52,0.00016712,2]
[420358883,1776031844349,-500.0,0.00016712,2]
[420358884,1776031844361,-500.0,0.00016712,2]
[420358885,1776031844372,-500.0,0.00016712,2]
[420358886,1776031844391,-500.0,0.00016712,2]
[420358887,1776031844401,-2233.52,0.00016712,2]
[420358888,1776031844412,-500.0,0.00016712,2]
[420358889,1776031844426,-500.0,0.00016712,2]
[420358890,1776031844439,-3239.01,0.00016712,2]
[420358891,1776031844449,-500.0,0.00016712,2]
[420358892,1776031844470,-500.0,0.00016712,2]
[420358893,1776031844479,-836.42,0.00016712,2]
[420358894,1776031844490,-500.0,0.00016712,2]
[420358895,1776031844503,-1550.23,0.00016712,2]
[420358896,1776031844517,-2645.99,0.00016712,2]
[420358897,1776031844528,-574.5930029,0.00016712,2]
[420358898,1776031844538,-5341.38,0.00016712,2]
[420358899,1776031844569,-500.0,0.00016712,2]
[420358900,1776031844580,-500.0,0.00016712,2]
[420358901,1776031844590,-3466.04,0.00016712,2]
[420358902,1776031844618,-2547.79,0.00016712,2]
[420358903,1776031844634,-605.35,0.00016712,2]
[420358904,1776031844654,-517.07,0.00016712,2]
[420358905,1776031844671,-500.0,0.00016712,2]
[420358906,1776031844681,-598.43,0.00016712,2]
[420358907,1776031844690,-500.0,0.00016712,2]
[420358908,1776031844717,-1850.1,0.00016712,2]
[420358909,1776031844726,-500.0,0.00016712,2]
[420358910,1776031844751,-500.0,0.00016712,2]
[420358911,1776031844763,-500.0,0.00016712,2]
[420358912,1776031844773,-500.0,0.00016712,2]
[420358913,1776031844800,-500.0,0.00016712,2]
[420358914,1776031844809,-2309.04,0.00016712,2]
[420358915,1776031844819,-500.0,0.00016712,2]
[420358916,1776031844846,-500.0,0.00016712,2]
[420358917,1776031844855,-500.0,0.00016712,2]
[420358918,1776031844867,-1192.52,0.00016712,2]
[420358919,1776031844911,-2323.17,0.00016712,2]
[420358920,1776031844921,-674.47,0.00016712,2]
[420358921,1776031844949,-500.0,0.00016712,2]
[420358922,1776031844981,-1528.0,0.00016712,2]
[420358923,1776031845000,-1674.1276,0.00016986,2]
[420358924,1776031845011,-500.0,0.00016986,2]
[420358925,1776031845021,-500.0,0.00016986,2]
[420358926,1776031845035,-582.08,0.00016986,2]
[420358927,1776031845054,-500.0,0.00016986,2]
[420358928,1776031845065,-2245.51,0.00016986,2]
[420358929,1776031845101,-500.0,0.00016986,2]
[420358930,1776031845126,-1898.13,0.00016986,2]
[420358931,1776031845141,-500.0,0.00016986,2]
[420358932,1776031845152,-1424.05,0.00016986,2]
[420358933,1776031845204,-942.59,0.00016986,2]
[420358934,1776031845229,-500.0,0.00016986,2]
[420358935,1776031845263,-2805.1,0.00016986,2]
[420358936,1776031845288,-500.0,0.00016986,2]
[420358937,1776031845324,-500.0,0.00016986,2]
[420358938,1776031845346,-626.72,0.00016986,2]
[420358939,1776031845358,-223.36306404,0.00016986,2]
[420358940,1776031845375,-500.0,0.00016986,2]
[420358941,1776031845400,-500.0,0.00016986,2]
[420358942,1776031845409,-551.52,0.00016986,2]
[420358943,1776031845419,-500.0,0.00016986,2]
[420358944,1776031845439,-500.0,0.00016986,2]
[420358945,1776031845462,-500.0,0.00016986,2]
[420358946,1776031845478,-500.0,0.00016986,2]
[420358947,1776031845491,-2233.52,0.00016986,2]
[420358948,1776031845529,-500.0,0.00016986,2]
[420358949,1776031845542,-500.0,0.00016986,2]
[420358950,1776031845552,-3239.01,0.00016986,2]
[420358951,1776031845611,-500.0,0.00016986,2]
[420358952,1776031845674,-500.0,0.00016986,2]
[420358953,1776031845691,-836.42,0.00016986,2]
[420358954,1776031845737,-500.0,0.00016986,2]
[420358955,1776031845765,-1550.23,0.00016986,2]
[420358956,1776031845779,-2645.99,0.00016986,2]
[420358957,1776031845810,-5341.38,0.00016986,2]
[420358958,1776031845822,-500.0,0.00016986,2]
[420358959,1776031845860,-500.0,0.00016986,2]
[420358960,1776031845869,-3466.04,0.00016986,2]
[420358961,1776031845906,-2547.79,0.00016986,2]
[420358962,1776031845916,-605.35,0.00016986,2]
[420358963,1776031845925,-517.07,0.00016986,2]
[420358964,1776031845945,-500.0,0.00016986,2]
[420358965,1776031845957,-500.0,0.00016986,2]
[420358966,1776031845967,-1850.1,0.00016986,2]
[420358967,1776031845979,-500.0,0.00016986,2]
[420358968,1776031845994,-598.43,0.00016986,2]
[420358969,1776031846010,-500.0,0.00016986,2]
[420358970,1776031846024,-500.0,0.00016986,2]
[420358971,1776031846041,-500.0,0.00016986,2]
[420358972,1776031846074,-500.0,0.00016986,2]
[420358973,1776031846088,-2309.04,0.00016986,2]
[420358974,1776031846113,-500.0,0.00016986,2]
[420358975,1776031846122,-500.0,0.00016986,2]
[420358976,1776031846155,-500.0,0.00016986,2]
[420358978,1776031846184,-1192.52,0.00016986,2]
[420358979,1776031846200,-2323.17,0.00016986,2]
[420358980,1776031846210,-674.47,0.00016986,2]
[420358981,1776031846231,-500.0,0.00016986,2]
[420358982,1776031846259,-1528.0,0.00016986,2]
[420358983,1776031846289,-151.0,0.00017,2]
[420358984,1776031846299,-800.0,0.00017058,7]
[420358985,1776031846308,-400.0,0.00017058,7]
[420358986,1776031846326,-400.0,0.00017058,7]
[420358987,1776031846336,-400.0,0.00017058,7]
[420358988,1776031846346,-400.0,0.00017058,7]
[420358989,1776031846359,-400.0,0.00017058,7]
[420358990,1776031846368,-400.0,0.00017058,7]
[420358991,1776031846378,-400.0,0.00017058,7]
[420358992,1776031846387,-400.0,0.00017058,7]
[420358993,1776031846399,-400.0,0.00017058,7]
[420358994,1776031846412,-400.0,0.00017058,7]
[420358995,1776031846423,-400.0,0.00017058,7]
[420358996,1776031846432,-400.0,0.00017058,7]
[420358997,1776031846443,-400.0,0.00017058,7]
[420358998,1776031846465,-400.0,0.00017058,7]
[420358999,1776031846475,-400.0,0.00017058,7]
[420359000,1776031846485,-400.0,0.00017058,7]
[420359001,1776031846504,-400.0,0.00017058,7]
[420359002,1776031846514,-400.0,0.00017058,7]
[420359003,1776031846525,-400.0,0.00017058,7]
[420359004,1776031846549,-400.0,0.00017058,7]
[420359005,1776031846559,-400.0,0.00017058,7]
[420359006,1776031846570,-400.0,0.00017058,7]
[420359007,1776031846588,-400.0,0.00017058,7]
[420359008,1776031846599,-400.0,0.00017058,7]
[420359009,1776031846609,-400.0,0.00017058,7]
[420359010,1776031846622,-400.0,0.00017058,7]
[420359011,1776031846633,-400.0,0.00017058,7]
[420359012,1776031846644,-210.45,0.00017058,7]
[420359013,1776031846654,-400.0,0.00017058,7]
[420359014,1776031846666,-400.0,0.00017058,7]
[420359015,1776031846677,-400.0,0.00017058,7]
[420359016,1776031846700,-400.0,0.00017058,7]
[420359017,1776031846710,-400.0,0.00017058,7]
[420359018,1776031846722,-400.0,0.00017058,7]
[420359019,1776031846734,-400.0,0.00017058,7]
[420359020,1776031846754,-271.708,0.00017214,2]
[420359021,1776031846764,-1674.1276,0.0001726,2]
[420359022,1776031846781,-459.57233965,0.0001726,2]
[420359023,1776031846796,-582.08,0.0001726,2]
[420359024,1776031846809,-500.0,0.0001726,2]
[420359025,1776031846822,-2245.51,0.0001726,2]
[420359026,1776031846838,-500.0,0.0001726,2]
[420359027,1776031846853,-1898.13,0.0001726,2]
[420359028,1776031846863,-555.63615641,0.0001726,2]
[420359029,1776031846886,-1424.05,0.0001726,2]
[420359030,1776031846898,-942.59,0.0001726,2]
[420359031,1776031846909,-500.0,0.0001726,2]
[420359032,1776031846933,-2805.1,0.0001726,2]
[420359033,1776031846945,-206.26043407,0.0001726,2]
[420359034,1776031846966,-500.0,0.0001726,2]
[420359035,1776031846978,-626.72,0.0001726,2]
[420359036,1776031846990,-500.0,0.0001726,2]
[420359037,1776031847004,-500.0,0.0001726,2]
[420359038,1776031847014,-551.52,0.0001726,2]
[420359039,1776031847038,-500.0,0.0001726,2]
[420359040,1776031847054,-500.0,0.0001726,2]
[420359041,1776031847075,-500.0,0.0001726,2]
[420359042,1776031847087,-500.0,0.0001726,2]
[420359043,1776031847121,-2233.52,0.0001726,2]
[420359044,1776031847135,-500.0,0.0001726,2]
[420359045,1776031847147,-500.0,0.0001726,2]
[420359046,1776031847169,-3239.01,0.0001726,2]
[420359047,1776031847179,-500.0,0.0001726,2]
[420359048,1776031847191,-500.0,0.0001726,2]
[420359049,1776031847221,-836.42,0.0001726,2]
[420359050,1776031847231,-500.0,0.0001726,2]
[420359051,1776031847248,-1550.23,0.0001726,2]
[420359052,1776031847263,-2645.99,0.0001726,2]
[420359053,1776031847273,-5341.38,0.0001726,2]
[420359054,1776031847291,-336.8366775,0.0001726,2]
[420359055,1776031847322,-500.0,0.0001726,2]
[420359056,1776031847334,-3466.04,0.0001726,2]
[420359057,1776031847358,-2547.79,0.0001726,2]
[420359058,1776031847372,-605.35,0.0001726,2]
[420359059,1776031847408,-517.07,0.0001726,2]
[420359060,1776031847419,-500.0,0.0001726,2]
[420359061,1776031847475,-500.0,0.0001726,2]
[420359062,1776031847486,-1850.1,0.0001726,2]
[420359063,1776031847498,-500.0,0.0001726,2]
[420359064,1776031847530,-598.43,0.0001726,2]
[420359065,1776031847540,-500.0,0.0001726,2]
[420359066,1776031847562,-500.0,0.0001726,2]
[420359067,1776031847571,-500.0,0.0001726,2]
[420359068,1776031847596,-500.0,0.0001726,2]
[420359069,1776031847605,-2309.04,0.0001726,2]
[420359070,1776031847617,-500.0,0.0001726,2]
[420359071,1776031847639,-500.0,0.0001726,2]
[420359072,1776031847649,-500.0,0.0001726,2]
[420359073,1776031847670,-1192.52,0.0001726,2]
[420359074,1776031847689,-2323.17,0.0001726,2]
[420359075,1776031847699,-674.47,0.0001726,2]
[420359076,1776031847719,-500.0,0.0001726,2]
[420359077,1776031847731,-487.0,0.0001726,2]
[420359078,1776031847741,-487.0,0.0001726,2]
[420359079,1776031847756,-487.0,0.0001726,2]
[420359080,1776031847780,-487.0,0.0001726,2]
[420359081,1776031847790,-487.0,0.0001726,2]
[420359082,1776031847802,-629.82,0.0001726,2]
[420359083,1776031847813,-1528.0,0.0001726,2]
[420359084,1776031847833,-1000.0,0.00017261,5]
[420359085,1776031847844,-151.0,0.000174,2]
[420359086,1776031847855,-5503.31451465,0.00017427,2]
[420359087,1776031847870,-1674.1276,0.00017534,2]
[420359088,1776031847884,-38000.0,0.00017534,3]
[420359089,1776031847897,-5189.11045218,0.00017534,3]
[420359090,1776031847908,-582.08,0.00017534,2]
[420359091,1776031847924,-500.0,0.00017534,2]
[420359092,1776031847933,-2245.51,0.00017534,2]
[420359093,1776031847943,-500.0,0.00017534,2]
[420359094,1776031847963,-1898.13,0.00017534,2]
[420359095,1776031847973,-1424.05,0.00017534,2]
[420359096,1776031847997,-942.59,0.00017534,2]
[420359097,1776031848007,-500.0,0.00017534,2]
[420359098,1776031848018,-2805.1,0.00017534,2]
[420359099,1776031848041,-500.0,0.00017534,2]
[420359100,1776031848051,-626.72,0.00017534,2]
[420359101,1776031848061,-500.0,0.00017534,2]
[420359102,1776031848088,-500.0,0.00017534,2]
[420359103,1776031848103,-551.52,0.00017534,2]